bitfinex/quotes_SOLUSD_20220207
["timestamp","ask_amount","ask_price","bid_price","bid_amount"]
[1644250995070,12.4074,120.99,120.91,46.27688317]
[1644250995270,12.6574,120.99,120.91,46.27688317]
[1644250995471,8.99131712,120.98,120.91,46.27688317]
[1644250995869,12.4076,120.98,120.91,46.27688317]
[1644250996273,12.4076,120.98,120.91,58.68358317]
[1644250997474,0.25,120.99,120.91,58.68358317]
[1644250998277,65.0273,121.0,120.91,58.68358317]
[1644250998478,65.2773,121.0,120.91,58.68358317]
[1644250999082,2.64592622,120.99,120.91,12.4067]
[1644250999279,15.05312622,120.99,120.9,12.408]
[1644250999480,12.4072,120.99,120.9,12.408]
[1644251000105,12.6572,120.99,120.9,12.408]
[1644251000503,12.6572,120.99,120.91,36.79548147]
[1644251001405,12.6572,120.99,120.91,49.20268147]
[1644251002007,18.6572,120.99,120.91,49.20268147]
[1644251004406,18.4072,120.99,120.91,49.20268147]
[1644251005005,18.4072,120.99,120.91,12.4072]
[1644251005206,18.4072,120.99,120.9,12.4091]
[1644251005607,18.4072,120.99,120.87,23.1201]
[1644251005906,18.4072,120.99,120.88,37.98793418]
[1644251007007,2.14682857,120.98,120.87,0.024]
[1644251007210,18.20082857,120.98,120.87,0.024]
[1644251007507,12.4143,120.95,120.86,0.024]
[1644251007707,36.9423,120.95,120.86,0.024]
[1644251007906,42.9423,120.95,120.83,43.61977371]
[1644251008106,42.9423,120.95,120.84,0.024]
[1644251008306,43.1923,120.95,120.84,0.024]
[1644251008507,12.4159,120.91,120.84,0.024]
[1644251008708,12.4159,120.91,120.83,49.59577371]
[1644251008907,12.4159,120.91,120.83,43.59577371]
[1644251009710,12.4159,120.91,120.85,41.60496077]
[1644251010111,12.4159,120.91,120.85,43.36361449]
[1644251010511,12.4159,120.91,120.85,1.75865372]
[1644251011817,12.4159,120.91,120.83,0.024]
[1644251012018,11.92,120.9,120.81,0.024]
[1644251012215,11.92,120.9,120.8,0.024]
[1644251012216,12.4215,120.88,120.8,0.024]
[1644251012416,22.7465,120.88,120.8,0.024]
[1644251012617,22.7465,120.88,120.79,113.1]
[1644251012816,22.7465,120.88,120.8,48.66872468]
[1644251013218,22.7465,120.88,120.79,113.1]
[1644251013726,11.92,120.87,120.77,0.024]
[1644251013919,12.4259,120.84,120.77,0.024]
[1644251014120,11.92,120.83,120.75,0.024]
[1644251014328,4.139,120.82,120.73,343.16603101]
[1644251014721,11.92,120.81,120.73,343.16603101]
[1644251015021,21.483,120.81,120.73,343.16603101]
[1644251015221,39.9121,120.81,120.73,343.16603101]
[1644251015421,40.1621,120.81,120.73,343.16603101]
[1644251015623,40.1621,120.81,120.72,0.024]
[1644251016931,30.5991,120.81,120.72,0.024]
[1644251017225,18.6791,120.81,120.74,47.93526809]
[1644251017625,18.4291,120.81,120.75,1.75865372]
[1644251018024,12.4291,120.81,120.75,1.75865372]
[1644251018425,24.3491,120.81,120.75,1.75865372]
[1644251018927,24.3491,120.81,120.76,43.76917749]
[1644251019126,24.5991,120.81,120.75,1.75865372]
[1644251019327,24.5991,120.81,120.72,1.75865372]
[1644251019532,30.5991,120.81,120.72,1.75865372]
[1644251020130,30.5991,120.81,120.73,38.07595104]
[1644251021333,30.5991,120.81,120.74,1.75865372]
[1644251021531,30.5991,120.81,120.75,37.32912448]
[1644251021832,6.0,120.81,120.75,37.32912448]
[1644251022232,24.3457,120.83,120.75,37.32912448]
[1644251022733,48.1823,120.85,120.77,41.11532052]
[1644251023535,48.1823,120.85,120.78,1.75865372]
[1644251023733,6.18045,120.84,120.79,42.24008327]
[1644251024537,12.4226,120.86,120.79,42.24008327]
[1644251024736,6.18045,120.85,120.79,42.24008327]
[1644251024934,6.18045,120.85,120.77,0.024]
[1644251025135,6.18045,120.85,120.76,1.75836838]
[1644251025335,205.7434,120.88,120.77,1.75836838]
[1644251025536,12.4235,120.85,120.77,1.75836838]
[1644251025962,18.4235,120.85,120.78,46.57513824]
[1644251026164,18.6735,120.85,120.78,46.57513824]
[1644251027165,6.0,120.85,120.78,46.57513824]
[1644251027364,11.92,120.92,120.79,1.75836838]
[1644251027564,4.138,120.94,120.8,56.72133718]
[1644251027765,24.9559,120.95,120.8,69.43532802]
[1644251027964,24.9559,120.95,120.82,12.4153]
[1644251028164,24.9559,120.95,120.83,45.46081767]
[1644251028365,37.3689,120.95,120.84,0.024]
[1644251028566,43.3689,120.95,120.84,1.78236838]
[1644251028769,43.3689,120.95,120.85,49.63431835]
[1644251029366,43.3689,120.95,120.86,1.75836838]
[1644251029568,43.3689,120.95,120.86,1.78236838]
[1644251029769,43.3689,120.95,120.84,1.75836838]
[1644251029966,43.3689,120.95,120.85,0.024]
[1644251030467,2.14682857,120.94,120.83,0.024]
[1644251030666,11.92,120.93,120.83,42.73951784]
[1644251030866,12.4186,120.9,120.83,42.71551784]
[1644251031066,12.4186,120.9,120.79,0.024]
[1644251031768,12.4186,120.9,120.79,1.78236838]
[1644251031969,12.4186,120.9,120.8,40.04217219]
[1644251032371,18.4186,120.9,120.8,40.04217219]
[1644251032567,30.3386,120.9,120.8,40.04217219]
[1644251034270,30.3386,120.9,120.8,41.80054057]
[1644251034671,30.5886,120.9,120.8,40.04217219]
[1644251035270,18.6686,120.9,120.81,1.75836838]
[1644251035470,18.6686,120.9,120.82,45.54093036]
[1644251035670,18.4186,120.9,120.82,45.54093036]
[1644251035870,18.4186,120.9,120.83,1.75774411]
[1644251036070,18.4186,120.9,120.84,34.92742229]
[1644251036872,18.4186,120.9,120.82,0.024]
[1644251037073,18.6686,120.9,120.78,0.024]
[1644251037271,11.92,120.89,120.77,0.024]
[1644251037476,11.92,120.89,120.74,24.35999084]
[1644251037477,12.4235,120.86,120.75,0.024]
[1644251037672,12.4235,120.86,120.74,11.444]
[1644251037872,12.4235,120.86,120.75,41.80369154]
[1644251038072,11.92,120.92,120.76,11.92]
[1644251038272,57.403,120.93,120.77,39.39678015]
[1644251038473,4.136,120.92,120.77,39.39678015]
[1644251038674,22.23645,120.92,120.77,39.39678015]
[1644251038878,12.4175,120.9,120.77,39.39678015]
[1644251039076,11.92,120.89,120.77,39.39678015]
[1644251039276,16.058,120.89,120.77,39.39678015]
[1644251039476,16.058,120.89,120.78,1.75774411]
[1644251039676,11.92,120.89,120.79,36.16538961]
[1644251039878,42.6899,120.89,120.79,36.16538961]
[1644251040082,42.6899,120.89,120.76,1.75774411]
[1644251040277,12.4224,120.86,120.74,1.75774411]
[1644251040879,12.6724,120.86,120.74,1.75774411]
[1644251041178,12.6724,120.86,120.75,39.60269038]
[1644251041580,12.6724,120.86,120.75,41.36043449]
[1644251044984,18.4224,120.86,120.75,41.36043449]
[1644251045483,42.6293,120.86,120.75,41.36043449]
[1644251046785,12.4262,120.82,120.75,41.36043449]
[1644251048690,6.0,120.82,120.75,41.36043449]
[1644251048890,6.0,120.82,120.75,41.61043449]
[1644251049089,6.0,120.82,120.75,53.53043449]
[1644251049290,23.817,120.85,120.75,53.53043449]
[1644251049492,23.817,120.85,120.75,65.99443449]
[1644251049493,6.0,120.85,120.75,65.99443449]
[1644251049690,6.0,120.85,120.75,74.53042261]
[1644251049890,102.1978,120.88,120.75,65.99443449]
[1644251050091,12.4219,120.86,120.75,53.28043449]
[1644251050791,12.6719,120.86,120.75,53.28043449]
[1644251051595,12.6719,120.86,120.75,41.36043449]
[1644251051793,12.6719,120.86,120.75,41.61043449]
[1644251052415,12.4219,120.86,120.75,41.61043449]
[1644251052618,12.4219,120.86,120.76,0.024]
[1644251053016,12.4219,120.86,120.76,1.7772409]
[1644251053219,12.4219,120.86,120.77,34.2584081]
[1644251053616,12.4219,120.86,120.77,36.261649]
[1644251053816,12.6719,120.86,120.77,36.261649]
[1644251054016,0.25,120.86,120.77,48.181649]
[1644251054215,114.4648,120.88,120.77,48.181649]
[1644251054417,114.7148,120.88,120.77,48.181649]
[1644251054619,12.6694,120.88,120.77,48.181649]
[1644251054820,12.4194,120.88,120.77,48.181649]
[1644251055016,12.4194,120.88,120.77,60.600749]
[1644251055819,18.4194,120.88,120.77,60.600749]
[1644251056018,18.4194,120.88,120.77,72.900749]
[1644251056619,18.6694,120.88,120.77,81.43673712]
[1644251057221,6.25,120.88,120.77,81.43673712]
[1644251057420,6.0,120.88,120.77,81.43673712]
[1644251057822,12.4176,120.9,120.77,81.43673712]
[1644251058021,18.4176,120.9,120.78,0.024]
[1644251058222,18.4176,120.9,120.8,36.41947668]
[1644251058430,18.4176,120.9,120.8,36.44347668]
[1644251058623,18.4176,120.9,120.81,1.75329249]
[1644251058823,18.6676,120.9,120.82,45.69355366]
[1644251059425,18.4176,120.9,120.82,45.69355366]
[1644251061225,18.6676,120.9,120.8,0.024]
[1644251061727,20.81442857,120.9,120.8,0.024]
[1644251062126,20.81442857,120.9,120.8,46.91118119]
[1644251062327,20.56442857,120.9,120.8,46.91118119]
[1644251062528,18.4176,120.9,120.8,48.66447368]
[1644251062731,18.4176,120.9,120.8,48.64047368]
[1644251062929,18.4176,120.9,120.8,46.88718119]
[1644251063328,20.56442857,120.9,120.8,46.88718119]
[1644251063532,32.48442857,120.9,120.79,0.024]
[1644251063728,22.8713,120.89,120.78,0.024]
[1644251063928,12.4209,120.86,120.79,1.75329249]
[1644251064127,64.5243,120.89,120.79,1.75329249]
[1644251064327,23.1213,120.89,120.79,1.75329249]
[1644251064529,23.1213,120.89,120.8,39.16841429]
[1644251064729,23.1213,120.89,120.8,39.19241429]
[1644251064931,12.4194,120.88,120.8,39.19241429]
[1644251065129,12.4194,120.88,120.8,39.16841429]
[1644251065728,12.4194,120.88,120.78,0.024]
[1644251065928,13.5859606,120.88,120.77,1.77729249]
[1644251066131,13.5859606,120.88,120.78,1.75329249]
[1644251066329,13.5859606,120.88,120.78,1.77729249]
[1644251066529,13.5859606,120.88,120.78,1.75329249]
[1644251066829,13.5859606,120.88,120.79,42.71666821]
[1644251067029,13.5859606,120.88,120.79,42.74066821]
[1644251067629,19.5859606,120.88,120.79,44.4699607]
[1644251068030,18.4194,120.88,120.79,44.4699607]
[1644251068233,18.4194,120.88,120.79,44.7199607]
[1644251068433,6.0,120.88,120.79,44.7199607]
[1644251068636,22.8713,120.89,120.79,44.7439607]
[1644251068835,28.8713,120.89,120.79,44.7439607]
[1644251069037,30.0378606,120.89,120.79,44.4939607]
[1644251069435,30.0378606,120.89,120.79,44.4699607]
[1644251069635,1.1665606,120.88,120.79,44.4699607]
[1644251070035,12.4213,120.86,120.79,44.4699607]
[1644251070236,12.6713,120.86,120.79,44.4699607]
[1644251071037,12.6713,120.86,120.77,0.024]
[1644251071240,14.81812857,120.86,120.77,1.77422801]
[1644251071538,1.1665606,120.84,120.77,0.024]
[1644251071738,12.429,120.82,120.75,0.024]
[1644251071937,37.4262,120.82,120.75,0.024]
[1644251072138,43.4262,120.82,120.71,36.75959135]
[1644251072739,43.4262,120.82,120.71,36.73559135]
[1644251073137,47.5662,120.82,120.71,36.75959135]
[1644251073742,47.8162,120.82,120.71,36.75959135]
[1644251074340,43.4262,120.82,120.71,36.75959135]
[1644251074739,47.5662,120.82,120.71,36.73559135]
[1644251075938,47.8162,120.82,120.71,36.73559135]
[1644251077240,48.9827606,120.82,120.71,36.73559135]
[1644251077440,47.8162,120.82,120.71,36.73559135]
[1644251078844,49.96302857,120.82,120.71,36.73559135]
[1644251080544,49.71302857,120.82,120.71,36.73559135]
[1644251080747,47.5662,120.82,120.71,36.73559135]
[1644251080945,43.4262,120.82,120.71,36.73559135]
[1644251083644,43.4262,120.82,120.71,48.67959135]
[1644251083848,43.4262,120.82,120.73,47.83484445]
[1644251084345,18.429,120.82,120.73,47.85884445]
[1644251084544,18.429,120.82,120.73,49.60453107]
[1644251084745,6.0,120.82,120.73,61.77453107]
[1644251085147,23.4871,120.85,120.73,61.77453107]
[1644251085345,6.18045,120.84,120.74,0.024]
[1644251085546,6.18045,120.84,120.76,12.4203]
[1644251085746,6.43045,120.84,120.77,48.74825333]
[1644251085947,6.43045,120.84,120.77,50.49393995]
[1644251086145,6.43045,120.84,120.77,48.99825333]
[1644251086345,6.43045,120.84,120.79,45.6034371]
[1644251086547,6.18045,120.84,120.79,45.6034371]
[1644251086747,6.18045,120.84,120.79,47.34912372]
[1644251087151,6.18045,120.84,120.76,1.74568662]
[1644251087348,6.18045,120.84,120.75,0.024]
[1644251087748,0.25,120.84,120.72,0.024]
[1644251088150,30.4018,120.85,120.72,48.81292395]
[1644251088349,30.4018,120.85,120.73,0.024]
[1644251088848,36.58225,120.85,120.73,0.024]
[1644251089051,12.4226,120.84,120.73,0.024]
[1644251089251,18.60305,120.84,120.73,0.024]
[1644251089454,18.85305,120.84,120.73,0.024]
[1644251090150,18.85305,120.84,120.73,12.4479]
[1644251090349,18.85305,120.84,120.74,35.00080931]
[1644251090749,18.85305,120.84,120.74,35.25080931]
[1644251092053,18.85305,120.84,120.74,35.00080931]
[1644251092349,18.60305,120.84,120.74,35.00080931]
[1644251092551,18.60305,120.84,120.75,1.74568662]
[1644251092750,18.60305,120.84,120.76,42.81063994]
[1644251093152,24.60305,120.84,120.76,44.55118224]
[1644251093752,24.85305,120.84,120.76,44.55118224]
[1644251094453,24.60305,120.84,120.76,44.55118224]
[1644251094658,24.60305,120.84,120.76,44.80118224]
[1644251095253,18.4226,120.84,120.76,44.80118224]
[1644251096154,18.4226,120.84,120.76,44.55118224]
[1644251096355,18.6726,120.84,120.76,1.7405423]
[1644251096553,18.6726,120.84,120.74,1.7405423]
[1644251096761,18.6726,120.84,120.74,1.7645423]
[1644251097054,32.73942857,120.84,120.74,0.024]
[1644251097655,36.87842857,120.84,120.74,0.024]
[1644251099357,38.04498917,120.84,120.74,0.024]
[1644251099758,31.7591606,120.84,120.74,0.024]
[1644251101161,1.1665606,120.83,120.74,0.024]
[1644251101363,12.428,120.8,120.73,45.76581957]
[1644251101663,12.428,120.8,120.72,0.024]
[1644251101863,12.428,120.8,120.7,0.024]
[1644251102664,12.428,120.8,120.7,54.68237796]
[1644251102866,12.428,120.8,120.7,66.85237796]
[1644251103065,12.428,120.8,120.7,68.03141708]
[1644251103865,18.428,120.8,120.7,68.03141708]
[1644251104770,18.678,120.8,120.7,68.03141708]
[1644251105171,18.678,120.8,120.7,67.78141708]
[1644251105370,18.678,120.8,120.7,66.85237796]
[1644251106373,18.678,120.8,120.7,66.60237796]
[1644251107373,18.428,120.8,120.7,66.60237796]
[1644251108885,18.428,120.8,120.7,68.03141708]
[1644251109086,6.0,120.8,120.7,74.03141708]
[1644251109287,6.0,120.8,120.71,1.17903912]
[1644251109487,121.0443606,120.86,120.73,12.4215]
[1644251109688,121.0443606,120.86,120.74,59.17591407]
[1644251109885,121.0443606,120.86,120.74,68.74628892]
[1644251110086,121.0443606,120.86,120.74,68.99628892]
[1644251110287,121.0443606,120.86,120.75,1.76019909]
[1644251110487,13.5877606,120.86,120.76,61.89524066]
[1644251110688,12.4212,120.86,120.76,61.89524066]
[1644251110887,1.1665606,120.87,120.76,63.88143975]
[1644251111088,1.1665606,120.87,120.78,43.92233908]
[1644251111392,1.1665606,120.87,120.79,1.73619909]
[1644251111591,1.1665606,120.89,120.81,12.4158]
[1644251111789,1.1665606,120.89,120.82,37.99388556]
[1644251111989,1.1665606,120.9,120.82,37.99388556]
[1644251112589,1.1665606,120.9,120.82,39.73008465]
[1644251112590,7.1665606,120.9,120.82,39.73008465]
[1644251112793,1.1665606,120.91,120.82,39.73008465]
[1644251112989,7.1665606,120.9,120.82,39.73008465]
[1644251113189,7.1665606,120.9,120.82,37.99388556]
[1644251113794,18.4164,120.9,120.82,50.40938556]
[1644251113992,18.4164,120.9,120.82,50.65938556]
[1644251114390,1.1665606,120.91,120.82,52.39558465]
[1644251114592,1.1665606,120.92,120.84,48.52431427]
[1644251114793,97.681,120.96,120.85,24.3324]
[1644251114794,1.1665606,120.93,120.85,24.3324]
[1644251114990,1.1665606,120.93,120.86,43.04799399]
[1644251115191,1.1665606,120.94,120.86,44.78419308]
[1644251115492,1.1665606,120.94,120.88,41.19892361]
[1644251115892,2.34986184,120.98,120.89,1.73619909]
[1644251116091,2.34986184,121.01,120.9,11.92]
[1644251116292,0.03591019,121.01,120.9,12.17]
[1644251116491,0.03591019,121.0,120.91,1.73619909]
[1644251116690,0.03591019,121.02,120.92,11.92]
[1644251116891,46.57711019,121.03,120.93,34.56723022]
[1644251117093,0.03591019,121.02,120.93,48.22888997]
[1644251117297,52.57711019,121.03,120.93,60.63168997]
[1644251117493,52.5412,121.03,120.93,58.89003022]
[1644251117696,67.12793876,121.03,120.93,34.56723022]
[1644251118694,67.37793876,121.03,120.93,34.56723022]
[1644251119496,67.12793876,121.03,120.93,34.56723022]
[1644251120096,71.25993876,121.03,120.93,34.56723022]
[1644251120296,83.17993876,121.03,120.88,59.2132]
[1644251120496,12.4104,120.98,120.88,59.2132]
[1644251120699,12.6604,120.98,120.88,12.17]
[1644251121096,18.6604,120.98,120.83,22.03938701]
[1644251121296,23.6901,120.97,120.86,11.92]
[1644251121497,23.6901,120.97,120.87,39.69625784]
[1644251122095,36.1007,120.97,120.87,39.69625784]
[1644251122296,36.1007,120.97,120.87,39.94625784]
[1644251123397,36.1007,120.97,120.87,39.69625784]
[1644251123797,12.4137,120.94,120.87,39.69625784]
[1644251124697,12.4137,120.94,120.81,11.92]
[1644251125000,46.0188,120.93,120.8,11.92]
[1644251125197,12.4157,120.92,120.8,11.92]
[1644251125396,12.4157,120.92,120.79,49.23695975]
[1644251125599,12.4157,120.92,120.8,46.3001045]
[1644251126001,12.4157,120.92,120.8,58.9662045]
[1644251126198,12.6657,120.92,120.8,58.9662045]
[1644251126497,12.6657,120.92,120.81,11.92]
[1644251126700,12.6657,120.92,120.82,44.43301654]
[1644251127197,12.6657,120.92,120.82,44.68301654]
[1644251127399,12.4157,120.92,120.82,44.68301654]
[1644251127801,12.4157,120.92,120.82,58.83927629]
[1644251127999,18.4157,120.92,120.82,58.83927629]
[1644251128802,18.6657,120.92,120.82,58.83927629]
[1644251131104,6.0,120.92,120.82,58.83927629]
[1644251131504,46.0188,120.93,120.82,70.75927629]
[1644251131704,0.03591019,120.97,120.82,70.75927629]
[1644251131906,46.30341019,120.97,120.82,70.75927629]
[1644251132707,46.30341019,120.97,120.82,76.75927629]
[1644251132907,46.30341019,120.97,120.82,88.95303075]
[1644251133506,0.03591019,120.97,120.82,95.50953939]
[1644251133707,0.03591019,120.98,120.82,118.20413939]
[1644251133906,12.44531019,120.98,120.82,118.20413939]
[1644251134106,0.03591019,120.97,120.82,104.26872518]
[1644251134307,0.03591019,120.97,120.82,91.71221654]
[1644251134506,0.03591019,120.98,120.83,1.74801748]
[1644251134707,0.03591019,120.97,120.87,12.4091]
[1644251134906,0.03591019,120.98,120.88,40.09528843]
[1644251135106,12.4103,120.97,120.88,40.09528843]
[1644251135307,12.4103,120.97,120.88,40.34528843]
[1644251136806,115.99291019,120.99,120.88,52.75418843]
[1644251137007,103.58451019,120.99,120.9,46.74839905]
[1644251137206,0.03591019,121.0,120.9,55.19439905]
[1644251137408,24.72651019,121.01,120.91,1.74801748]
[1644251137607,24.72651019,121.01,120.92,43.46324069]
[1644251137808,24.6906,121.01,120.92,43.71324069]
[1644251138011,22.741,121.02,120.93,1.74801748]
[1644251138207,0.03591019,121.04,120.93,1.99801748]
[1644251138609,0.03591019,121.06,120.94,13.66801748]
[1644251138809,0.03591019,121.06,120.94,13.91801748]
[1644251139011,11.06633522,121.06,120.95,48.79145732]
[1644251139210,11.06633522,121.06,120.96,24.3202]
[1644251139410,11.06633522,121.06,120.96,12.4002]
[1644251139610,6.03591019,121.06,120.95,47.04343984]
[1644251139810,6.03591019,121.06,120.95,47.29343984]
[1644251140012,0.03591019,121.06,120.95,47.29343984]
[1644251140213,12.43661019,121.06,120.95,59.69503984]
[1644251140413,0.03591019,121.06,120.95,59.69503984]
[1644251140614,0.03591019,121.06,120.95,65.69503984]
[1644251140813,0.03591019,121.06,120.95,59.69503984]
[1644251142618,0.03591019,121.06,120.99,12.3976]
[1644251142819,127.3408,121.07,120.99,12.6476]
[1644251143222,127.3408,121.07,121.0,39.44879011]
[1644251144322,127.5908,121.07,121.0,39.44879011]
[1644251144720,139.9906,121.07,121.0,39.44879011]
[1644251146522,127.5908,121.07,121.0,39.69879011]
[1644251146724,127.5908,121.07,121.0,49.67779011]
[1644251147323,54.545,121.07,121.0,49.67779011]
[1644251147923,54.545,121.07,121.0,62.07459011]
[1644251149739,54.545,121.07,121.0,52.09559011]
[1644251150240,54.545,121.07,121.0,39.69879011]
[1644251150439,54.545,121.07,121.0,39.44879011]
[1644251150642,54.545,121.07,120.94,41.3342]
[1644251150643,59.46722259,121.07,120.94,41.3342]
[1644251150843,71.42313278,121.07,120.92,24.6837]
[1644251151040,71.67313278,121.07,120.92,32.43171748]
[1644251151242,68.89773876,121.07,120.92,32.43171748]
[1644251151641,81.29723876,121.07,120.94,12.4026]
[1644251151941,79.15041019,121.07,120.94,12.4026]
[1644251152142,67.23041019,121.07,120.96,47.19661572]
[1644251152341,67.23041019,121.07,120.96,47.44661572]
[1644251153141,68.91188459,121.07,120.96,47.19661572]
[1644251153346,80.83188459,121.07,120.96,47.19661572]
[1644251153542,79.15041019,121.07,120.96,47.19661572]
[1644251154642,79.15041019,121.07,120.96,72.57281572]
[1644251154846,79.15041019,121.07,120.96,72.82281572]
[1644251155042,0.03591019,121.07,120.97,1.74797021]
[1644251155243,0.03591019,121.09,120.97,13.91797021]
[1644251155446,0.03591019,121.08,120.97,19.91797021]
[1644251155644,0.03591019,121.09,120.98,9.62614552]
[1644251155846,0.03591019,121.09,120.98,9.87614552]
[1644251156045,0.03591019,121.09,121.0,41.76515688]
[1644251156244,23.28341019,121.1,121.0,66.96915688]
[1644251156447,23.28341019,121.1,121.02,12.3955]
[1644251156744,23.2475,121.1,121.02,12.6455]
[1644251156944,23.2475,121.1,121.03,1.74797021]
[1644251157142,23.2475,121.1,121.04,48.47770127]
[1644251157543,23.2475,121.1,121.04,50.47567148]
[1644251158644,29.2475,121.1,121.04,50.22567148]
[1644251158846,29.2475,121.1,121.04,62.61927148]
[1644251159347,6.25,121.1,121.04,62.61927148]
[1644251159849,6.25,121.1,121.04,60.87130127]
[1644251160047,0.25,121.1,121.04,60.87130127]
[1644251160248,22.8869,121.11,121.04,60.87130127]
[1644251160449,35.2821,121.11,121.04,48.47770127]
[1644251162147,41.2821,121.11,121.04,48.47770127]
[1644251163048,41.5321,121.11,121.04,48.47770127]
[1644251164150,28.8869,121.11,121.04,58.71370127]
[1644251164352,28.8869,121.11,121.04,60.71167148]
[1644251165651,29.1369,121.11,121.04,60.71167148]
[1644251165950,0.03591019,121.12,121.04,73.10527148]
[1644251166154,2.38577203,121.15,121.04,91.02527148]
[1644251166351,0.03591019,121.13,121.04,91.02527148]
[1644251166551,0.03591019,121.15,121.04,91.02527148]
[1644251168051,35.65378433,121.16,121.04,91.02527148]
[1644251168252,0.03627169,121.15,121.04,91.02527148]
[1644251168454,0.03627169,121.15,121.07,0.31103056]
[1644251168758,0.03627169,121.19,121.09,12.385]
[1644251168952,4.21236968,121.21,121.1,11.92]
[1644251169154,0.03627169,121.19,121.11,48.2476233]
[1644251169354,0.03627169,121.21,121.12,11.92]
[1644251169555,0.03627169,121.21,121.13,47.07072911]
[1644251169754,0.03627169,121.25,121.14,11.92]
[1644251169953,0.03627169,121.23,121.15,43.96003596]
[1644251170152,0.03627169,121.24,121.17,48.29856202]
[1644251170353,0.03627169,121.24,121.17,59.05956202]
[1644251170552,85.700737,121.27,121.17,59.05956202]
[1644251170553,85.73700869,121.27,121.17,59.05956202]
[1644251170753,85.98700869,121.27,121.17,59.05956202]
[1644251170954,85.98700869,121.27,121.17,71.18756202]
[1644251171153,18.26182526,121.26,121.17,60.67656202]
[1644251171753,12.3803,121.26,121.17,60.67656202]
[1644251172756,34.8656964,121.26,121.17,60.67656202]
[1644251172956,34.8656964,121.26,121.17,48.29856202]
[1644251173156,34.8656964,121.26,121.15,12.3822]
[1644251173356,12.384,121.22,121.05,53.45]
[1644251173558,12.384,121.22,121.12,11.92]
[1644251173756,12.384,121.22,121.11,1.74797021]
[1644251173757,0.03627169,121.21,121.11,11.92]
[1644251174159,54.93188997,121.23,121.12,37.34161923]
[1644251174558,12.3866,121.2,121.12,37.34161923]
[1644251174958,12.6366,121.2,121.12,37.34161923]
[1644251175658,0.25,121.2,121.12,49.72781923]
[1644251175957,23.54547169,121.22,121.12,51.72578944]
[1644251176157,23.79547169,121.22,121.12,51.72578944]
[1644251176357,23.79547169,121.22,121.12,51.47578944]
[1644251176960,36.18017169,121.22,121.12,61.15278944]
[1644251177157,36.1439,121.22,121.12,61.15278944]
[1644251177357,36.1439,121.22,121.12,73.07278944]
[1644251177758,23.7592,121.22,121.12,73.07278944]
[1644251177958,23.7592,121.22,121.12,79.07278944]
[1644251178561,23.5092,121.22,121.12,79.07278944]
[1644251178960,0.03627169,121.23,121.12,79.07278944]
[1644251180462,0.03627169,121.23,121.12,78.82278944]
[1644251182566,0.03627169,121.23,121.12,79.07278944]
[1644251182765,0.03627169,121.25,121.12,102.62198944]
[1644251183164,0.03627169,121.25,121.12,102.37198944]
[1644251184066,12.41707169,121.25,121.12,102.37198944]
[1644251184271,12.41707169,121.25,121.12,92.94498944]
[1644251184468,24.9226,121.24,121.12,92.94498944]
[1644251184668,0.03627169,121.23,121.12,92.94498944]
[1644251185468,0.03627169,121.23,121.12,93.19498944]
[1644251187374,8.07452875,121.22,121.12,92.94498944]
[1644251187574,0.03627169,121.22,121.12,73.27701923]
[1644251187773,4.16227169,121.23,121.12,49.72781923]
[1644251187977,0.03627169,121.23,121.12,51.4813917]
[1644251188375,12.3864,121.2,121.12,37.34161923]
[1644251189277,12.6364,121.2,121.12,37.34161923]
[1644251190578,12.6364,121.2,121.12,43.41260923]
[1644251190903,0.25,121.2,121.12,57.5521817]
[1644251191293,0.03627169,121.22,121.12,57.5521817]
[1644251191496,2.18310026,121.23,121.12,57.5521817]
[1644251191696,0.03627169,121.22,121.12,57.5521817]
[1644251192095,2.18310026,121.23,121.12,57.8021817]
[1644251192295,0.03627169,121.22,121.12,57.5521817]
[1644251192496,0.03627169,121.23,121.12,57.5521817]
[1644251192697,0.03627169,121.22,121.12,83.9691817]
[1644251193098,49.4361,121.24,121.12,83.9691817]
[1644251193099,0.03627169,121.23,121.12,83.9691817]
[1644251195799,12.41897169,121.23,121.12,75.4721817]
[1644251196000,44.2662383,121.23,121.12,55.79860923]
[1644251196403,46.41306687,121.23,121.12,43.41260923]
[1644251196905,1.83967384,121.22,121.12,43.41260923]
[1644251197102,12.385,121.21,121.12,43.41260923]